bitfinex/quotes_ETHUSD_20260214
["timestamp","ask_amount","ask_price","bid_price","bid_amount"]
[1771060171776,1.501,2083.8,2082.6,4.80153088]
[1771060171993,1.501,2083.8,2082.8,16.18840498]
[1771060172484,1.501,2083.8,2082.9,1.20024965]
[1771060172915,1.16098078,2084.0,2082.9,1.20024965]
[1771060173057,1.158,2084.1,2082.9,1.20024965]
[1771060173359,1.16098078,2084.0,2082.9,1.20024965]
[1771060174371,1.19967368,2083.9,2082.7,4.8009986]
[1771060174687,1.16098078,2083.8,2082.7,4.8009986]
[1771060175660,1.16098078,2083.8,2082.6,4.8009986]
[1771060176671,1.16098078,2083.7,2082.6,4.8009986]
[1771060177283,1.19967916,2083.9,2082.6,4.8009986]
[1771060177486,1.16098078,2083.9,2082.6,4.8009986]
[1771060182370,1.16098078,2083.9,2082.7,0.864]
[1771060184103,1.16098078,2083.9,2082.8,1.20030727]
[1771060184400,1.16098078,2083.9,2082.9,2.461]
[1771060184805,1.16098078,2084.1,2082.9,6.281]
[1771060184994,1.16098078,2084.1,2082.9,21.21867568]
[1771060186293,1.16098078,2084.0,2083.0,1.20019203]
[1771060188900,7.68161331,2084.8,2083.1,0.52429653]
[1771060189082,0.80544109,2084.4,2083.3,0.52429653]
[1771060189402,0.80544109,2084.4,2083.2,14.93767568]
[1771060189403,0.80544109,2084.4,2083.5,0.52429653]
[1771060189800,0.80654109,2084.4,2083.5,0.52429653]
[1771060190901,0.80654109,2084.4,2083.7,0.55691374]
[1771060192403,0.0011,2084.4,2083.7,0.55691374]
[1771060192881,0.0011,2084.4,2083.8,1.75450793]
[1771060193087,0.80654109,2084.4,2083.8,1.75450793]
[1771060193320,0.80654109,2084.4,2083.8,1.19973126]
[1771060193517,0.80654109,2084.4,2083.6,4.79935843]
[1771060194612,0.80654109,2084.4,2083.4,1.199904]
[1771060195220,0.80544109,2084.2,2083.4,1.199904]
[1771060197189,1.19955856,2084.1,2083.3,4.7998464]
[1771060197533,0.80544109,2084.0,2083.3,4.7998464]
[1771060197736,0.80544109,2084.0,2083.1,0.54940017]
[1771060197892,0.80544109,2084.0,2083.2,1.2000768]
[1771060199926,0.80544109,2083.9,2083.2,1.2000768]
[1771060200088,0.80544109,2083.9,2083.2,1.74732581]
[1771060200487,4.79800838,2084.2,2083.2,1.74732581]
[1771060200488,0.80544109,2084.3,2083.3,0.54617051]
[1771060200687,0.80544109,2084.2,2083.3,0.54617051]
[1771060202114,0.80544109,2084.2,2083.4,1.1999616]
[1771060202517,0.80544109,2084.2,2083.4,1.74420203]
[1771060202831,0.82922135,2084.1,2083.4,1.74420203]
[1771060203008,0.82922135,2084.1,2083.4,1.1999616]
[1771060203926,0.82922135,2084.1,2083.4,1.74312097]
[1771060204107,0.82922135,2084.1,2083.5,0.54315937]
[1771060205337,0.82922135,2084.3,2083.5,0.54315937]
[1771060205630,0.4931,2084.4,2083.5,0.54315937]
[1771060205831,1.32232135,2084.4,2083.5,0.54315937]
[1771060206035,1.32232135,2084.4,2083.7,0.54098979]
[1771060206240,0.4931,2084.4,2083.7,0.54098979]
[1771060206536,0.0011,2084.4,2083.7,0.54098979]
[1771060207810,0.0011,2084.4,2083.8,0.53881729]
[1771060208010,0.0011,2084.4,2084.0,0.53881729]
[1771060208236,0.0011,2084.4,2084.2,0.53881729]
[1771060208448,0.0011,2084.6,2084.2,0.53881729]
[1771060210152,0.0011,2084.6,2084.3,1.73611335]
[1771060210948,0.0011,2084.6,2084.3,1.19944345]
[1771060211151,0.0011,2085.0,2084.5,0.53557756]
[1771060212255,0.0011,2085.0,2084.6,1.19927084]
[1771060212551,0.83032135,2085.0,2084.6,1.19927084]
[1771060213355,0.83032135,2085.0,2084.5,1.19928899]
[1771060214719,0.83032135,2085.0,2084.3,1.19944345]
[1771060215028,0.82922135,2084.9,2084.3,1.19944345]
[1771060216130,1.19874044,2085.6,2084.5,0.82871716]
[1771060216333,2.02796179,2085.6,2084.5,0.82871716]
[1771060216531,2.02796179,2085.6,2084.6,0.82871716]
[1771060216756,0.0011,2085.3,2084.6,0.82871716]
[1771060216925,0.0011,2085.3,2084.7,2.02793047]
[1771060219149,0.83032135,2085.3,2084.5,5.62562518]
[1771060219343,0.83032135,2085.3,2084.6,0.82871716]
[1771060219344,0.0011,2085.3,2084.6,0.82871716]
[1771060220555,0.0011,2085.3,2084.7,0.82871716]
[1771060221334,0.0011,2085.3,2084.8,1.19915579]
[1771060222066,0.83032135,2085.3,2084.8,1.19915579]
[1771060223079,0.83032135,2085.3,2084.3,0.82871716]
[1771060223364,0.82922135,2085.1,2084.1,1.19955856]
[1771060223767,0.82922135,2085.1,2084.0,3.66058085]
[1771060223973,0.82922135,2085.1,2084.0,1.19958085]
[1771060224438,0.82922135,2085.1,2084.0,2.02829801]
[1771060225666,0.82922135,2084.9,2084.0,2.02829801]
[1771060226859,0.82922135,2084.9,2084.0,1.19958085]
[1771060227061,0.82922135,2084.9,2083.9,1.19962174]
[1771060228172,0.82922135,2084.7,2083.8,4.798906]
[1771060228551,0.82922135,2084.7,2083.8,1.19973126]
[1771060229256,0.82922135,2084.7,2083.6,1.20081293]
[1771060229456,0.82922135,2084.7,2083.6,0.001]
[1771060229649,1.19915579,2084.8,2083.6,1.20083782]
[1771060229650,0.82922135,2084.5,2083.6,1.20083782]
[1771060229845,0.82922135,2084.3,2083.6,1.20083782]
[1771060230975,2.02868067,2084.3,2083.6,1.20083782]
[1771060231548,0.81079421,2084.2,2083.6,1.20083782]
[1771060231750,2.94279421,2084.4,2083.6,1.20083782]
[1771060231947,3.33138656,2084.4,2083.6,1.20083782]
[1771060232186,0.81079421,2084.3,2083.6,1.20083782]
[1771060233185,0.81079421,2084.1,2083.6,0.001]
[1771060233848,4.79789566,2084.3,2083.6,0.001]
[1771060233849,2.01028062,2084.3,2083.6,0.001]
[1771060234054,2.01023968,2084.3,2083.6,0.001]
[1771060234597,0.81079421,2084.3,2083.6,0.001]
[1771060235357,2.01023991,2084.3,2083.6,0.001]
[1771060235569,0.81079421,2084.3,2083.6,0.001]
[1771060235776,2.0101249,2084.5,2083.6,0.83470852]
[1771060236563,0.81079421,2084.4,2083.6,0.001]
[1771060236766,0.81079421,2084.4,2083.6,0.83470852]
[1771060237153,0.81079421,2084.6,2083.6,0.83470852]
[1771060237389,2.01007748,2084.6,2083.8,0.83370852]
[1771060237578,2.0100736,2084.6,2083.8,0.83370852]
[1771060238496,2.0100736,2084.6,2083.7,2.03349735]
[1771060238497,0.81079421,2084.5,2083.7,2.03349735]
[1771060238661,0.81079421,2084.5,2083.7,1.19978883]
[1771060239090,4.79687592,2084.7,2083.8,0.83370852]
[1771060239295,0.81079421,2084.6,2083.7,1.19978883]
[1771060239468,0.81079421,2084.4,2083.7,1.19978883]
[1771060240499,2.01999586,2084.6,2083.7,1.9826183]
[1771060240707,0.82068367,2084.5,2083.7,1.9826183]
[1771060241694,0.82068367,2084.5,2083.8,0.78282947]
[1771060242481,0.82068367,2084.5,2083.7,1.19978883]
[1771060242681,2.02001613,2084.5,2083.7,1.19978883]
[1771060243905,0.82068367,2084.4,2083.7,1.19978883]
[1771060244905,0.82068367,2084.4,2083.6,1.20080366]
[1771060247012,2.02012712,2084.3,2083.6,1.20080366]
[1771060247805,0.82068367,2084.2,2083.6,1.20080366]
[1771060249521,2.02020603,2084.2,2083.6,0.001]
[1771060250208,1.19952236,2084.2,2083.6,0.001]
[1771060250408,0.82068367,2084.1,2083.6,0.001]
[1771060253416,0.82068367,2084.3,2083.6,0.001]
[1771060254921,0.82068367,2084.3,2083.6,0.78382947]
[1771060256924,2.02018467,2084.2,2083.6,0.001]
[1771060257420,0.82068367,2084.2,2083.6,0.001]
[1771060257928,1.19946922,2084.3,2083.7,0.78282947]
[1771060258111,2.02001498,2084.5,2083.7,0.78282947]
[1771060258527,1.19933131,2084.5,2083.7,0.78282947]
[1771060258690,2.02001498,2084.5,2083.7,0.78282947]
[1771060258890,0.82068367,2084.4,2083.7,1.98259123]
[1771060259921,0.82068367,2084.4,2083.7,1.19976176]
[1771060260816,0.82068367,2084.4,2083.6,5.02080247]
[1771060261021,0.71732575,2084.2,2083.6,5.02080247]
[1771060261821,0.71732575,2084.2,2083.6,3.821]
[1771060262403,0.71732575,2084.2,2083.6,5.02084077]
[1771060263207,0.71732575,2084.0,2083.6,3.821]
[1771060263532,0.71732575,2084.0,2083.6,0.001]
[1771060264227,0.1024,2084.8,2083.8,0.75551308]
[1771060264428,0.71732575,2085.1,2083.9,0.75551308]
[1771060265096,1.19904076,2085.0,2083.7,0.75551308]
[1771060265302,0.71732575,2084.8,2083.7,0.75551308]
[1771060266632,0.71732575,2084.8,2083.6,0.001]
[1771060266796,0.71732575,2084.8,2083.6,0.75651308]
[1771060266998,3.69132575,2084.7,2083.6,0.75651308]
[1771060267232,1.91659659,2084.6,2083.7,1.19978883]
[1771060267435,1.91659659,2084.6,2083.7,1.95530191]
[1771060267800,1.19927084,2084.6,2083.8,0.75551308]
[1771060268396,4.02654443,2084.7,2083.8,0.75551308]
[1771060268936,2.06307831,2085.0,2083.8,0.75551308]
[1771060269114,4.17207831,2085.0,2083.8,0.75551308]
[1771060269309,4.17207831,2085.0,2084.0,0.75551308]
[1771060269939,0.71732575,2085.1,2084.0,0.75551308]
[1771060271244,1.19896137,2085.2,2084.0,0.75551308]
[1771060271627,1.19896137,2085.2,2084.2,0.75551308]
[1771060271936,1.91628712,2085.2,2084.2,0.75551308]
[1771060272635,0.71732575,2085.1,2084.2,0.75551308]
[1771060273456,0.71732575,2085.1,2084.0,1.95509273]
[1771060273612,0.71732575,2085.1,2083.6,0.001]
[1771060273613,0.71732575,2084.8,2083.6,0.001]
[1771060273933,0.71732575,2084.6,2083.6,1.20084086]
[1771060274325,0.71732575,2084.6,2083.6,0.001]
[1771060274526,0.71732575,2084.4,2083.6,0.001]
[1771060276219,0.71732575,2084.2,2083.6,0.001]
[1771060276418,2.82232575,2084.1,2083.6,0.001]
[1771060278720,0.71732575,2083.9,2083.6,0.001]
[1771060278928,1.58132575,2083.8,2083.4,0.001]
[1771060279430,1.58132575,2083.8,2083.2,0.001]
[1771060279630,0.71732575,2083.7,2083.0,0.001]
[1771060279829,0.24953995,2082.8,2082.7,0.001]
[1771060281154,1.44984722,2082.8,2082.0,1.20073263]
[1771060281541,1.44984722,2082.8,2082.0,1.95624571]
[1771060282444,1.44984722,2082.8,2081.9,1.20078296]
[1771060282627,2.16717297,2082.8,2081.9,1.20078296]
[1771060282830,1.20042254,2082.6,2081.8,1.95635615]
[1771060283029,2.104,2082.5,2081.6,1.95646726]
[1771060283330,2.104,2082.5,2081.6,1.9564904]
[1771060283955,2.82132575,2082.5,2081.6,1.9564904]
[1771060284355,0.71732575,2082.4,2081.3,0.75551308]
[1771060284555,0.71732575,2082.4,2081.4,1.20111463]
[1771060284761,1.20042254,2082.6,2081.5,0.75551308]
[1771060284965,2.967,2082.3,2081.5,0.75551308]
[1771060285259,4.16761197,2082.3,2081.6,1.20099923]
[1771060285735,1.20061197,2082.3,2081.6,1.20099923]
[1771060286058,2.966,2082.2,2081.6,1.20099923]
[1771060287129,4.16665748,2082.2,2081.3,0.75551308]
[1771060287656,4.88398323,2082.2,2081.3,0.75551308]
[1771060287856,2.966,2082.2,2081.3,0.75551308]
[1771060288245,1.20056559,2082.4,2081.3,0.75551308]
[1771060288467,1.737,2082.1,2081.3,0.75551308]
[1771060288763,1.824,2082.0,2081.3,0.75551308]
[1771060289082,1.675,2082.0,2081.1,0.75551308]
[1771060289236,1.675,2082.1,2081.2,0.75551308]
[1771060290961,1.20056559,2082.4,2081.2,0.75551308]
[1771060291163,1.617,2082.1,2081.3,1.20117234]
[1771060291361,1.617,2082.1,2081.4,0.96190461]
[1771060291850,1.20055696,2082.4,2081.4,0.96190461]
[1771060292056,2.874,2082.3,2081.4,0.96190461]
[1771060293966,2.874,2082.3,2081.5,1.20105693]
[1771060294134,2.874,2082.3,2081.5,2.16296154]
[1771060294751,2.874,2082.3,2081.6,0.96190461]
[1771060295557,4.07460088,2082.3,2081.5,1.20105693]
[1771060295930,5.02074291,2082.3,2081.5,1.20105693]
[1771060296270,0.94614203,2082.2,2081.5,1.20105693]
[1771060296969,0.94614203,2082.2,2081.3,4.80453412]
[1771060297261,0.94614203,2082.2,2081.3,5.76643873]
[1771060298441,0.94614203,2082.2,2081.4,0.96190461]
[1771060298840,2.146797,2082.2,2081.4,0.96190461]
[1771060299338,2.146797,2082.2,2081.3,4.80453412]
[1771060299537,2.146797,2082.2,2081.3,5.76643873]
[1771060300264,0.91172905,2082.1,2081.3,1.20117234]
[1771060302232,2.11246327,2082.1,2081.3,0.93867508]
[1771060302650,0.91172905,2082.0,2081.1,0.93967508]
[1771060302963,0.91172905,2082.0,2081.1,0.001]
[1771060304341,1.20082616,2081.9,2081.1,0.001]
[1771060304549,0.91172905,2081.9,2081.1,0.001]
[1771060304853,2.956,2081.8,2081.1,0.93967508]
[1771060305991,2.956,2081.8,2081.1,0.001]
[1771060306205,2.956,2081.8,2081.1,0.93967508]
[1771060306398,2.956,2081.8,2081.2,1.20123005]
[1771060306573,0.865,2082.0,2081.3,0.93867508]
[1771060306772,2.09,2081.9,2081.3,0.93867508]
[1771060307662,0.0027,2081.5,2081.3,0.93867508]
[1771060308478,0.0028,2081.8,2081.4,1.20111463]
[1771060308686,0.00095,2081.8,2081.4,1.20111463]
[1771060309502,0.00095,2081.8,2081.2,4.80486378]
[1771060310593,0.00095,2081.8,2081.2,0.93867508]
[1771060311592,0.00095,2081.8,2081.1,0.001]
[1771060311593,0.91267905,2081.8,2081.1,0.001]
[1771060311998,0.00095,2081.8,2081.1,0.93967508]
[1771060312195,2.08945,2081.8,2081.1,0.93967508]
[1771060313101,2.08945,2081.8,2081.2,2.13990513]
[1771060314409,2.08945,2081.8,2081.2,1.20123005]
[1771060315777,3.29033682,2081.8,2081.1,4.80592023]
[1771060315973,2.08945,2081.8,2081.1,5.74459531]
[1771060316176,0.00245,2081.8,2081.2,0.93867508]
[1771060316404,1.99945,2081.8,2081.2,0.93867508]
[1771060317607,1.99945,2081.8,2081.1,4.80592023]
[1771060317608,1.99945,2081.8,2081.1,1.20228778]
[1771060317901,4.11206766,2081.8,2081.1,0.001]
[1771060318508,3.20033861,2081.8,2081.1,0.93967508]
[1771060319305,0.91172905,2081.7,2081.1,0.001]
[1771060319491,1.20248861,2081.8,2081.1,0.001]
[1771060319684,2.949,2081.7,2081.1,0.001]
[1771060320305,2.084,2081.6,2081.1,0.93967508]
[1771060320600,2.084,2081.6,2081.1,0.001]
[1771060321017,2.083,2081.5,2081.1,0.001]
[1771060324116,2.083,2081.5,2081.1,1.20228778]
[1771060324994,1.933,2081.5,2081.1,1.20228778]
[1771060327727,1.933,2081.5,2081.1,2.1034214]
[1771060328101,1.933,2081.5,2081.1,1.20228778]
[1771060328708,2.1075985,2081.6,2081.1,0.001]
[1771060328907,2.08,2081.5,2081.1,0.001]
[1771060332333,3.2810646,2081.5,2081.1,0.001]
[1771060332720,4.18765885,2081.5,2081.1,0.001]
[1771060333630,0.90659425,2081.4,2081.1,0.001]
[1771060333826,3.2810646,2081.5,2081.1,0.001]
[1771060333827,2.08,2081.5,2081.1,0.001]
[1771060335028,2.08,2081.5,2081.1,2.1034214]
[1771060335412,2.08,2081.5,2081.1,1.20228778]
[1771060335920,2.08,2081.5,2081.1,0.001]
[1771060339834,4.18765482,2081.5,2081.0,0.001]
[1771060340009,0.90659425,2081.4,2081.0,1.20233663]
[1771060340609,0.90659425,2081.4,2081.0,0.001]
[1771060340907,0.90659425,2081.4,2081.0,1.20233294]
[1771060341103,0.90659425,2081.4,2081.0,0.001]
[1771060341935,3.28110181,2081.5,2081.0,0.001]
[1771060342335,2.98659425,2081.5,2081.0,0.001]
[1771060342519,4.1876566,2081.5,2081.0,0.001]
[1771060344009,2.98659425,2081.5,2081.0,0.001]
[1771060344518,2.08,2081.5,2081.0,0.001]
[1771060344714,0.90659425,2081.7,2081.0,13.90076727]
[1771060344907,0.90659425,2081.7,2081.1,12.99863365]
[1771060345109,0.90659425,2081.7,2081.2,1.20123005]
[1771060345110,2.086,2081.6,2081.2,1.20123005]
[1771060345516,0.90659425,2081.5,2081.0,1.20234517]
[1771060345710,0.90659425,2081.5,2081.0,0.001]
[1771060347215,2.10770888,2081.4,2081.0,0.001]
[1771060347511,0.90659425,2081.4,2081.0,0.001]
[1771060350044,0.90659425,2081.3,2081.0,0.001]
[1771060350250,2.091,2081.2,2081.0,0.001]
[1771060355945,2.091,2081.2,2080.8,0.001]
[1771060356118,3.2922444,2081.2,2080.8,0.001]
[1771060356445,2.091,2081.2,2080.8,0.84322472]
[1771060356648,2.091,2081.2,2080.8,0.001]
[1771060356946,4.16811551,2081.2,2080.8,0.001]
[1771060357723,2.96685332,2081.2,2080.8,0.001]
[1771060358048,2.091,2081.2,2080.8,0.001]
[1771060359776,4.13891267,2081.2,2080.8,0.001]
[1771060359958,0.84666688,2081.1,2080.8,0.001]
[1771060360537,2.091,2081.2,2080.8,0.001]
[1771060360758,2.091,2081.2,2080.8,0.8547525]
[1771060361740,2.091,2081.2,2080.9,1.20140323]
[1771060362765,2.04765074,2081.7,2080.9,2.05515573]
[1771060362940,2.963,2081.6,2081.0,0.8537525]
[1771060363731,2.963,2081.6,2081.1,1.20128778]
[1771060364062,1.2036397,2081.8,2081.1,2.05504028]
[1771060364261,2.963,2081.7,2081.1,1.20128778]
[1771060364442,3.80966688,2081.7,2081.1,1.20128778]
[1771060365738,0.84666688,2081.6,2081.0,4.80537524]
[1771060366131,0.84666688,2081.6,2081.0,8.62537524]
[1771060366327,4.16394233,2081.7,2081.0,8.62537524]
[1771060366559,2.963,2081.7,2081.2,0.8537525]
[1771060367962,2.963,2081.7,2081.3,1.20117234]
[1771060368265,2.963,2081.7,2081.2,2.05496118]
[1771060372364,1.20358827,2081.8,2081.2,2.05496118]
[1771060372538,2.098,2081.7,2081.2,2.05496118]
[1771060373637,2.098,2081.7,2081.2,1.20120868]
[1771060375261,3.29894219,2081.7,2081.2,1.20120868]
[1771060375456,3.29894219,2081.7,2081.1,15.05149989]
[1771060375964,4.14560907,2081.7,2081.1,15.05149989]
[1771060376368,4.14560907,2081.7,2081.1,14.19774739]
[1771060376572,0.84666688,2081.6,2081.1,14.19774739]
[1771060377068,3.29894219,2081.7,2081.1,14.19774739]
[1771060377774,3.29894219,2081.7,2081.1,15.05149989]
[1771060378352,2.098,2081.7,2081.1,15.05149989]
[1771060378552,3.29894645,2081.7,2081.1,15.05149989]
[1771060379467,2.098,2081.7,2081.3,12.99650579]
[1771060379647,2.098,2081.7,2081.4,0.8537525]
[1771060379847,2.098,2081.7,2081.3,12.99650579]
[1771060380665,2.098,2081.7,2081.4,0.8537525]
[1771060380871,2.9312,2081.8,2081.5,13.85025829]
[1771060381071,0.0011,2081.9,2081.6,0.84276755]
[1771060381272,0.0011,2081.9,2081.7,13.83927334]
[1771060381571,0.0011,2081.9,2081.8,1.20088385]
[1771060382572,0.0011,2081.9,2081.7,15.04018123]
[1771060383070,0.0011,2082.2,2081.9,0.84276755]
[1771060383244,0.8661,2082.4,2082.0,0.84276755]
[1771060383971,0.8683,2082.4,2082.0,2.04351007]
[1771060384664,0.0011,2082.4,2082.2,0.84276755]
[1771060385055,0.0022,2082.5,2082.2,0.84276755]
[1771060385651,0.0022,2082.5,2082.3,12.99650579]
[1771060385846,2.1001,2082.6,2082.3,13.83927334]
[1771060386068,2.1023,2082.6,2082.3,13.83927334]
[1771060386272,0.0011,2082.8,2082.5,13.83927334]
[1771060386469,0.865,2082.9,2082.5,13.83927334]
[1771060387166,2.26351968,2083.3,2082.5,12.99650579]
[1771060387368,0.81269783,2083.2,2082.4,4.50630539]
[1771060387879,0.81269783,2083.2,2082.5,0.84276755]
[1771060388055,3.29699477,2083.4,2082.6,0.84276755]
[1771060388256,3.29699477,2083.4,2082.7,1.20036491]
[1771060388458,4.1096926,2083.4,2082.7,1.20036491]
[1771060389191,0.81269783,2083.3,2082.5,1.20043482]
[1771060389951,0.17618344,2083.3,2082.5,1.20043482]
[1771060390280,1.2000768,2083.2,2082.5,2.04320237]
[1771060390480,0.81269783,2083.2,2082.5,2.04320237]
[1771060390784,2.01272403,2083.3,2082.6,0.84276755]
[1771060391583,0.81269783,2083.3,2082.6,0.84276755]
[1771060393399,2.01275179,2083.3,2082.6,2.04318525]
[1771060394360,2.01272582,2083.3,2082.6,2.04318525]
[1771060395284,1.20013441,2083.1,2082.5,2.04324005]
[1771060396897,2.01282034,2083.2,2082.5,2.04324005]
[1771060397899,2.01282034,2083.2,2082.5,2.04323119]
[1771060398604,2.01282034,2083.2,2082.5,1.20046364]
[1771060398812,2.01282034,2083.2,2082.5,2.04323119]
[1771060398974,0.81269783,2083.1,2082.3,2.0433181]
[1771060399172,0.81269783,2083.0,2082.3,2.0433181]
[1771060399822,0.81269783,2083.0,2082.4,0.84276755]
[1771060400107,1.20017711,2083.1,2082.4,0.84276755]
[1771060401574,2.01287494,2083.1,2082.4,0.84276755]
[1771060401993,0.81269783,2083.0,2082.3,1.20057172]
[1771060402193,0.81269783,2083.0,2082.3,2.0433589]
[1771060403110,0.81269783,2083.0,2082.3,2.04335924]
[1771060403980,1.20024965,2082.9,2082.3,0.84276755]
[1771060404181,0.81269783,2082.8,2082.1,3.6636878]
[1771060404915,0.81269783,2082.8,2082.0,5.86349214]
[1771060405586,0.81269783,2082.8,2082.0,18.01723038]
[1771060405891,0.81269783,2082.8,2082.1,0.84276755]
[1771060407287,1.20036491,2082.7,2082.1,2.04343068]
[1771060407489,1.20036491,2082.7,2082.1,0.84276755]
[1771060407885,2.01306274,2082.7,2082.1,0.84276755]
[1771060408313,2.01306274,2082.7,2082.0,5.86350043]
[1771060409333,0.81269783,2082.5,2082.0,3.82]
[1771060410221,1.20036491,2082.7,2082.0,1.20076364]
[1771060410516,2.01306274,2082.7,2082.0,2.04353119]
[1771060414134,2.10162212,2082.7,2082.0,2.12763836]
[1771060414304,0.90125721,2082.6,2081.9,0.001]
[1771060414504,0.90125721,2082.6,2081.9,1.20182315]
[1771060414706,0.90125721,2082.6,2081.9,0.001]
[1771060415003,0.90125721,2082.0,2081.7,0.001]
[1771060415195,2.99825721,2082.0,2081.7,0.001]
[1771060415623,1.20082616,2081.9,2081.7,0.001]
[1771060415996,1.20070835,2082.2,2081.7,0.001]
[1771060416196,3.29870835,2082.2,2081.7,0.001]
[1771060416596,4.19996556,2082.2,2081.7,0.001]
[1771060417603,3.29870835,2082.2,2081.7,0.001]
[1771060418529,4.19996556,2082.2,2081.7,0.001]
[1771060418733,0.90125721,2082.1,2081.7,0.001]
[1771060419121,0.90125721,2082.0,2081.7,0.001]
[1771060419930,1.20082616,2081.9,2081.7,0.001]
[1771060420121,2.10003397,2081.9,2081.3,0.001]
[1771060420719,2.104,2081.8,2081.3,0.001]
[1771060421034,2.104,2081.8,2081.4,0.001]
[1771060421524,2.104,2081.8,2081.4,0.90877848]
[1771060421927,2.104,2081.8,2081.4,2.10984527]
[1771060422511,2.104,2081.8,2081.5,0.90777848]
[1771060423111,3.30488774,2081.8,2081.4,0.001]
[1771060424636,2.104,2081.8,2081.4,0.90877848]
[1771060425538,3.30489707,2081.8,2081.4,0.90877848]
[1771060426221,3.30489707,2081.8,2081.4,0.001]
[1771060426548,4.20410488,2081.8,2081.4,0.001]
[1771060427317,4.20410488,2081.8,2081.2,0.001]
[1771060427318,13.8957136,2081.7,2081.2,0.001]
[1771060427640,0.89920781,2081.6,2081.2,0.001]
[1771060427845,0.89920781,2081.6,2080.8,0.001]
[1771060428140,1.20117234,2081.3,2080.8,0.001]
[1771060428536,15.09688594,2081.3,2080.8,0.001]
[1771060428933,2.10038015,2081.3,2080.8,0.001]
[1771060429248,13.90443021,2081.2,2080.8,0.001]
[1771060429547,0.89920781,2081.2,2080.8,0.001]
[1771060430340,1.20128778,2081.1,2080.8,0.001]
[1771060430533,2.114,2081.0,2080.8,0.001]
[1771060435450,3.31534625,2081.0,2080.8,0.001]
[1771060435654,2.114,2081.0,2080.8,0.001]
[1771060439361,3.31535055,2081.0,2080.8,0.001]
[1771060439775,2.114,2081.0,2080.8,0.001]
[1771060439985,3.31534797,2081.0,2080.8,0.001]
[1771060440673,2.114,2081.0,2080.8,0.001]
[1771060440833,1.20120228,2081.3,2080.8,0.90877848]
[1771060441672,0.83913993,2081.2,2080.8,0.001]
[1771060441869,2.137,2081.1,2080.8,0.001]
[1771060442080,0.83913993,2081.0,2080.8,0.001]
[1771060442952,0.83913993,2081.0,2080.7,0.001]
[1771060443157,0.83913993,2081.0,2080.5,0.001]
[1771060443669,2.04054316,2080.9,2080.5,0.001]
[1771060443970,2.14,2080.8,2080.5,0.001]
[1771060444154,2.97913993,2080.8,2080.5,0.001]
[1771060444482,2.14,2080.8,2080.5,0.001]
[1771060445538,1.20151871,2080.7,2080.5,0.001]
[1771060447864,1.20151871,2080.7,2080.3,0.001]
[1771060448268,13.0052224,2080.4,2080.0,0.001]
[1771060448479,2.151,2080.4,2080.1,0.90185026]
[1771060448640,2.151,2080.4,2080.0,0.001]
[1771060448836,2.151,2080.4,2080.0,0.90285026]
[1771060449340,1.20149885,2080.8,2080.1,0.90185026]
[1771060449575,2.152,2080.5,2080.1,0.90185026]
[1771060449745,2.152,2080.5,2080.3,0.90185026]
[1771060450241,2.152,2080.5,2080.0,1.20289193]
[1771060450443,2.152,2080.5,2080.0,2.10474219]
[1771060450778,2.152,2080.5,2080.2,0.90185026]
[1771060451674,1.62890823,2080.5,2080.2,0.90185026]
[1771060452477,1.62890823,2080.5,2080.2,2.1036518]
[1771060452975,3.35250714,2080.8,2080.3,0.90185026]
[1771060453675,0.83913993,2080.7,2080.1,0.90185026]
[1771060454044,3.35250714,2080.8,2080.2,0.90185026]
[1771060454446,3.35250714,2080.8,2080.3,1.20174974]
[1771060454644,3.35250714,2080.8,2080.2,2.1036222]
[1771060455548,0.83913993,2080.7,2080.0,0.90285026]
[1771060455876,4.19164707,2080.8,2080.1,0.90185026]
[1771060456278,3.35250714,2080.8,2080.1,0.90185026]
[1771060456482,3.35250714,2080.8,2080.2,0.90185026]
[1771060456483,2.151,2080.8,2080.2,0.90185026]
[1771060456649,2.151,2080.8,2080.3,0.90185026]
[1771060456849,3.35246402,2080.8,2080.3,0.90185026]
[1771060459982,2.151,2080.8,2080.4,0.90185026]
[1771060460580,3.3564045,2080.9,2080.4,0.90185026]
[1771060460981,0.25101434,2081.2,2080.8,0.90185026]
[1771060461281,0.0011,2081.3,2080.9,0.90185026]
[1771060462380,0.0011,2081.3,2081.0,0.90185026]
[1771060463587,0.0011,2081.3,2081.0,2.10315177]
[1771060464688,0.0011,2081.3,2081.1,0.90185026]
[1771060465787,0.0011,2081.3,2081.1,2.10310779]
[1771060466664,0.0011,2081.3,2081.2,0.90185026]
[1771060467959,0.0011,2081.3,2081.2,2.10308031]
[1771060468498,0.0011,2081.3,2081.1,0.90185026]
[1771060468792,0.0011,2081.3,2081.1,2.10313721]
[1771060469565,0.0011,2081.5,2081.3,0.90185026]
[1771060469774,0.0011,2081.5,2081.1,0.90185026]
[1771060471580,0.0011,2081.5,2081.0,1.20134414]
[1771060472116,2.0444041,2081.5,2080.8,2.08935256]
[1771060472286,2.0444041,2081.5,2080.8,0.88789159]
[1771060472480,2.0444041,2081.5,2080.7,2.08936532]
[1771060472691,0.84224717,2081.4,2080.7,2.08936532]
[1771060473405,0.84224717,2081.4,2080.7,0.88789159]
[1771060473577,0.84224717,2081.4,2080.7,2.0893947]
[1771060474008,0.84224717,2081.4,2080.7,0.88789159]
[1771060474177,1.20117234,2081.3,2080.7,2.08939609]
[1771060476308,0.84224717,2081.3,2080.7,1.2015045]
[1771060478400,2.0433618,2081.4,2080.7,1.2015045]
[1771060480590,2.0433618,2081.4,2080.7,0.85955601]
[1771060481209,3.34921244,2081.5,2080.7,0.85955601]
[1771060482396,4.21699172,2081.5,2080.7,0.85955601]
[1771060482702,4.21699172,2081.5,2080.8,0.85955601]
[1771060482902,1.20218728,2081.5,2080.8,13.85908956]
[1771060483204,1.20218728,2081.5,2080.8,12.99953355]
[1771060483523,1.20218728,2081.5,2080.9,0.85955601]
[1771060484411,1.20218728,2081.5,2080.8,12.99953355]
[1771060484616,2.06996656,2081.5,2080.8,14.20098374]
[1771060486215,2.06996656,2081.5,2080.8,1.20145019]
[1771060486620,1.20218728,2081.5,2080.7,2.06103024]
[1771060486789,1.20117234,2081.3,2080.7,2.06103024]
[1771060487499,2.06895162,2081.3,2080.7,2.06103024]
[1771060488117,1.10117234,2081.3,2080.7,2.06103024]
[1771060488710,2.06889391,2081.4,2080.7,2.06103024]
[1771060489814,1.20111463,2081.4,2080.8,0.85955601]
[1771060490016,1.20111463,2081.4,2080.9,0.85955601]